fUSD/lending_fUSD_20250804
["ID","MTS","AMOUNT","RATE_DAILY","PERIOD"]
[377254981,1754306916990,-819.6,0.00047122,120]
[377254982,1754306917036,-523.96,0.00047122,120]
[377254983,1754306917084,-1226.37,0.00047396,120]
[377254984,1754306917130,-507.22,0.00047396,120]
[377254985,1754306917176,-819.6,0.00047396,120]
[377254986,1754306917223,-523.96,0.00047396,120]
[377254987,1754306917269,-1226.37,0.0004767,120]
[377254988,1754306917314,-507.22,0.0004767,120]
[377254989,1754306917357,-819.6,0.0004767,120]
[377254990,1754306917403,-523.96,0.0004767,120]
[377254991,1754306917450,-1226.54,0.00047944,120]
[377254992,1754306917496,-507.32403271,0.00047944,120]
[377254993,1754306917543,-819.69816242,0.00047944,120]
[377254994,1754306917591,-524.15,0.00047944,120]
[377254995,1754306917646,-151.74617586,0.00049519,30]
[377254996,1754306917696,-625.6339776,0.0005143,120]
[377254997,1754306917745,-843.0,0.00051781,120]
[377254998,1754306917793,-409203.35275938,0.00052,120]
[377255000,1754306917839,-776.55,0.00052,120]
[377255001,1754306917889,-1000.0,0.00052,120]
[377255002,1754306917937,-769.79280595,0.00052,120]
[377255003,1754306917986,-1236.54376268,0.00052,120]
[377255004,1754306918035,-1717.0,0.0005202,30]
[377255005,1754306918082,-200.0,0.00052055,120]
[377255006,1754306918139,-204.0,0.0005221,30]
[377255007,1754306918195,-500.0,0.00052366,60]
[377255008,1754306918243,-367.92973396,0.000524,120]
[377255009,1754306918290,-1706.99409,0.00052465,14]
[377255010,1754306918335,-500.0,0.000525,120]
[377255011,1754306918383,-2000000.0,0.000525,120]
[377255012,1754306918430,-5000.0,0.000525,120]
[377255013,1754306918476,-1717.0,0.0005253,30]
[377255014,1754306918522,-500.0,0.00052703,60]
[377255015,1754306918568,-805.727646,0.00052728,60]
[377255016,1754306918617,-999.0,0.00052739,120]
[377255017,1754306918665,-505.0,0.00052828,28]
[377255018,1754306918714,-178.33,0.00052875,120]
[377255019,1754306918763,-151.0,0.000529,120]
[377255020,1754306918812,-500.0,0.00052925,60]
[377255021,1754306918861,-500.0,0.00052959,60]
[377255022,1754306918910,-600.0,0.00052981,60]
[377255023,1754306918961,-500.0,0.00052983,60]
[377255024,1754306919009,-800.0,0.00052987,60]
[377255025,1754306919060,-50000.0,0.00053,53]
[377255026,1754306919117,-50000.0,0.00053,63]
[377255028,1754306919167,-2000000.0,0.00053,120]
[377255029,1754306919216,-1000.0,0.00053,120]
[377255030,1754306919264,-5000.0,0.00053,120]
[377255031,1754306919312,-800.0,0.00053,120]
[377255032,1754306919359,-2000.0,0.00053,120]
[377255033,1754306919408,-4183.22,0.00053,14]
[377255034,1754306919457,-500.0,0.0005304,60]
[377255035,1754306919508,-150.0,0.00053049,120]
[377255036,1754306919558,-252.80378802,0.0005315,35]
[377255037,1754306919611,-152.0,0.00053157,11]
[377255038,1754306919662,-338.0,0.00053403,120]
[377255039,1754306919716,-207.0,0.00053403,120]
[377255040,1754306919767,-5000.0,0.000535,120]
[377255041,1754306919819,-4223.0,0.00053534,120]
[377255043,1754306919872,-1083.0,0.0005355,30]
[377255044,1754306919921,-2023.0,0.00053624,120]
[377255045,1754306919971,-1651.0,0.00053624,120]
[377255046,1754306920021,-700.0,0.00053651,60]
[377255047,1754306920070,-500.0,0.00053675,60]
[377255048,1754306920118,-600.0,0.00053764,60]
[377255049,1754306920165,-700.0,0.00053773,60]
[377255050,1754306920212,-1011.34098895,0.000539,120]
[377255051,1754306920259,-600.0,0.0005395,60]
[377255052,1754306920308,-50000.0,0.00054,54]
[377255053,1754306920358,-50000.0,0.00054,64]
[377255054,1754306920404,-250824.71364735,0.00054,120]
[377255059,1754306922306,150.0,0.00027966,120]
[377255061,1754306923086,170.13482022,0.0003,120]
[377255062,1754306923208,252.15002873,0.000199,120]
[377255064,1754306923722,588.93764141,0.000151,2]
[377255065,1754306923750,12579.755,0.000151,2]
[377255066,1754306923773,15000.0,0.000151,2]
[377255067,1754306923795,15000.0,0.000151,2]
[377255068,1754306923816,2916.0052133,0.000151,2]
[377255069,1754306924021,-433.0,0.0003449,10]
[377255070,1754306924070,-176.75334121,0.00035822,120]
[377255071,1754306924118,-162.6544518,0.00036539,15]
[377255072,1754306924171,-200.000001,0.0003666,120]
[377255073,1754306924223,-162.65445173,0.0003745,15]
[377255074,1754306924627,-150.0,0.00041095,120]
[377255075,1754306924676,-4000.0,0.00041096,30]
[377255078,1754306925098,-412.31,0.00043835,120]
[377255079,1754306925150,-2180.52,0.00043835,120]
[377255080,1754306925205,-1799.02,0.00043835,120]
[377255081,1754306925260,-551.34,0.00043835,120]
[377255082,1754306925313,-1662.71,0.00043835,120]
[377255083,1754306925366,-1670.85,0.00043835,120]
[377255084,1754306925419,-902.78,0.00043835,120]
[377255085,1754306925471,-1680.17,0.00043835,120]
[377255086,1754306925527,-2280.29,0.00043835,120]
[377255087,1754306925583,-5140.15,0.00044108,120]
[377255088,1754306925638,-682.37,0.00044108,120]
[377255089,1754306925692,-2247.66,0.00044109,120]
[377255090,1754306925746,-412.31,0.00044109,120]
[377255091,1754306925799,-2180.52,0.00044109,120]
[377255092,1754306925852,-1799.02,0.00044109,120]
[377255093,1754306925905,-551.34,0.00044109,120]
[377255094,1754306925961,-1662.71,0.00044109,120]
[377255095,1754306926020,-1670.85,0.00044109,120]
[377255096,1754306926072,-902.78,0.00044109,120]
[377255098,1754306926122,-1680.17,0.00044109,120]
[377255099,1754306926176,-2280.29,0.00044109,120]
[377255100,1754306926228,-5140.15,0.00044382,120]
[377255102,1754306926277,-682.37,0.00044382,120]
[377255103,1754306926328,-2247.66,0.00044383,120]
[377255104,1754306926384,-412.31,0.00044383,120]
[377255105,1754306926435,-2180.52,0.00044383,120]
[377255106,1754306926484,-1799.02,0.00044383,120]
[377255107,1754306926535,-551.34,0.00044383,120]
[377255108,1754306926593,-1662.71,0.00044383,120]
[377255109,1754306926658,-902.78,0.00044383,120]
[377255110,1754306926714,-1670.85,0.00044383,120]
[377255111,1754306926770,-1680.17,0.00044383,120]
[377255112,1754306926826,-2280.29,0.00044383,120]
[377255113,1754306926881,-5140.15,0.00044656,120]
[377255114,1754306926935,-682.37,0.00044656,120]
[377255115,1754306926987,-412.40630244,0.00044657,120]
[377255116,1754306927039,-2247.75,0.00044657,120]
[377255117,1754306927090,-2180.54,0.00044657,120]
[377255118,1754306927141,-1799.14,0.00044657,120]
[377255119,1754306927190,-551.37,0.00044657,120]
[377255120,1754306927240,-1662.83,0.00044657,120]
[377255121,1754306927290,-902.78431755,0.00044657,120]
[377255122,1754306927341,-1670.9,0.00044657,120]
[377255123,1754306927391,-1680.24,0.00044657,120]
[377255124,1754306927444,-2280.33,0.00044657,120]
[377255125,1754306927501,-5140.15,0.0004493,120]
[377255127,1754306927553,-682.37,0.0004493,120]
[377255128,1754306927605,-5140.15,0.00045204,120]
[377255129,1754306927660,-682.37,0.00045204,120]
[377255131,1754306927711,-5140.15,0.00045478,120]
[377255133,1754306927763,-682.37,0.00045478,120]
[377255135,1754306927815,-5140.15,0.00045752,120]
[377255136,1754306927868,-682.37,0.00045752,120]
[377255137,1754306927921,-5140.15,0.00046026,120]
[377255138,1754306927974,-682.37,0.00046026,120]
[377255139,1754306928961,-5140.15,0.000463,120]
[377255140,1754306929072,-682.37,0.000463,120]
[377255142,1754306929128,-5140.15,0.00046574,120]
[377255143,1754306929179,-682.37,0.00046574,120]
[377255144,1754306929230,-5140.15,0.00046848,120]
[377255145,1754306929280,-682.37,0.00046848,120]
[377255147,1754306929330,-727.51,0.00047122,120]
[377255148,1754306929378,-5140.15,0.00047122,120]
[377255149,1754306929425,-727.51,0.00047396,120]
[377255150,1754306929473,-5140.15,0.00047396,120]
[377255151,1754306929522,-727.51,0.0004767,120]
[377255152,1754306929571,-5140.15,0.0004767,120]
[377255153,1754306929620,-787.44291558,0.0004788,100]
[377255154,1754306929666,-727.67,0.00047944,120]
[377255155,1754306929714,-5140.15,0.00047944,120]
[377255156,1754306929766,-300.0,0.00049315,120]
[377255157,1754306929813,-1000.0,0.0005,120]
[377255158,1754306929862,-1000.0,0.00051,120]
[377255159,1754306929913,-1199.050098,0.00053869,60]
[377255160,1754306929968,-1749175.28635265,0.00054,120]
[377255161,1754306930019,-1000.0,0.00054,120]
[377255163,1754306930068,-5000.0,0.00054,120]
[377255165,1754306930116,-500.0,0.00054,120]
[377255166,1754306930164,-170.6884332,0.00054,120]
[377255167,1754306930210,-721.6350613,0.00054,120]
[377255168,1754306930254,-713.5542896,0.00054,120]
[377255169,1754306930294,-151.0,0.00054,120]
[377255170,1754306930339,-40000.0,0.00054,120]
[377255171,1754306930386,-505.0,0.00054023,33]
[377255172,1754306930435,-500.0,0.00054076,60]
[377255173,1754306930483,-150.0,0.00054196,120]
[377255174,1754306930532,-178.33,0.00054245,120]
[377255175,1754306930580,-700.0,0.00054253,60]
[377255176,1754306930629,-1500.0,0.0005436,47]
[377255177,1754306930678,-606880.0,0.0005444,30]
[377255178,1754306930728,-500.0,0.00054465,60]
[377255179,1754306930778,-5000.0,0.000545,120]
[377255180,1754306930828,-999.0,0.0005452,120]
[377255181,1754306930878,-800.0,0.00054578,60]
[377255183,1754306930935,-800.0,0.00054621,60]
[377255184,1754306930987,-1000.0,0.00054699,30]
[377255185,1754306931040,-150.0,0.00054771,120]
[377255186,1754306931088,-800.0,0.00054778,60]
[377255187,1754306931138,-500.0,0.00054794,120]
[377255188,1754306931185,-500.0,0.00054794,120]
[377255189,1754306931232,-365.91301236,0.00054794,120]
[377255190,1754306931279,-500.0,0.00054794,120]
[377255191,1754306931324,-500.0,0.00054794,120]
[377255192,1754306931369,-500.0,0.00054794,120]
[377255193,1754306931414,-500.0,0.00054794,120]
[377255194,1754306931458,-500.0,0.00054794,120]
[377255195,1754306931504,-500.0,0.00054794,120]
[377255196,1754306931550,-500.0,0.00054794,120]
[377255198,1754306931597,-500.0,0.00054794,120]
[377255199,1754306931648,-500.0,0.00054794,120]
[377255200,1754306931698,-500.0,0.00054794,120]
[377255201,1754306931745,-500.0,0.00054794,120]
[377255202,1754306931794,-500.0,0.00054794,120]
[377255203,1754306931845,-383.18622659,0.00054794,120]
[377255204,1754306931902,-666.0,0.00054794,120]
[377255205,1754306931956,-200.0,0.00054795,120]
[377255206,1754306932011,-204.0,0.0005489,30]
[377255207,1754306932061,-500.0,0.00054904,60]
[377255208,1754306932110,-666.0,0.00054931,120]
[377255210,1754306932158,-49463.76397222,0.0005495,120]
[377255211,1754306932206,-600.0,0.00054957,60]
[377255212,1754306932256,-50000.0,0.00055,55]
[377255213,1754306932308,-50000.0,0.00055,65]
[377255214,1754306932357,-2000000.0,0.00055,120]
[377255215,1754306932407,-2000.0,0.00055,120]
[377255217,1754306932457,-431.05957954,0.00055,120]
[377255218,1754306932506,-212.78263298,0.00055,120]
[377255219,1754306932555,-500.0,0.00055,120]
[377255220,1754306932608,-262519.14456025,0.00055,120]
[377255225,1754306934532,437.69394056,0.00022,120]
[377255226,1754306934718,6190.99229367,0.00013368,2]
[377255227,1754306934910,166.49638723,0.00027397,120]
[377255228,1754306935455,469.15109313,0.00027397,120]
[377255229,1754306935616,1305.0,0.0001,2]
[377255230,1754306935832,210.78614948,0.00025,120]
[377255231,1754306936664,-8798.017149,0.00028,60]
[377255232,1754306936715,-1005.10856602,0.00035,30]
[377255233,1754306936763,-530.72222952,0.00035,90]
[377255234,1754306936810,-522.0003049,0.00035622,120]
[377255235,1754306936907,-162.65445173,0.0003836,15]
[377255236,1754306937284,-162.65445173,0.00039271,15]
[377255237,1754306937620,-428.85697148,0.00041667,120]
[377255238,1754306937667,-238907.76,0.00041902,30]
[377255239,1754306937759,-376.21225651,0.00042,120]
[377255240,1754306938025,-401.71,0.00043835,120]
[377255241,1754306938072,-539.97,0.00043835,120]
[377255242,1754306938117,-956.34,0.00043835,120]
[377255243,1754306938166,-1028.62,0.00043835,120]
[377255244,1754306938212,-5293.82,0.00044108,120]
[377255245,1754306938257,-400.0,0.00044108,120]
[377255246,1754306938300,-545.66,0.00044108,120]
[377255247,1754306938346,-401.71,0.00044109,120]
[377255248,1754306938394,-539.97,0.00044109,120]
[377255249,1754306938441,-956.34,0.00044109,120]
[377255250,1754306938486,-1028.62,0.00044109,120]
[377255251,1754306938532,-5293.82,0.00044382,120]
[377255252,1754306938578,-400.0,0.00044382,120]
[377255253,1754306938623,-545.66,0.00044382,120]
[377255254,1754306938669,-401.71,0.00044383,120]
[377255255,1754306938715,-539.97,0.00044383,120]
[377255256,1754306938762,-956.34,0.00044383,120]
[377255257,1754306938809,-1028.62,0.00044383,120]
[377255258,1754306938858,-5293.82,0.00044656,120]
[377255259,1754306938906,-400.0,0.00044656,120]
[377255260,1754306938954,-545.66,0.00044656,120]
[377255261,1754306939000,-401.75,0.00044657,120]
[377255262,1754306939045,-539.97,0.00044657,120]
[377255263,1754306939090,-956.51,0.00044657,120]
[377255264,1754306939135,-1028.74,0.00044657,120]
[377255265,1754306939183,-379.0,0.000449,30]
[377255266,1754306939229,-5293.82,0.0004493,120]
[377255267,1754306939275,-400.0,0.0004493,120]
[377255268,1754306939322,-545.66,0.0004493,120]
[377255269,1754306939366,-153.0,0.00045,120]
[377255270,1754306939411,-1035.23925166,0.00045,120]
[377255271,1754306939458,-5293.82,0.00045204,120]
[377255272,1754306939503,-400.0,0.00045204,120]
[377255273,1754306939547,-545.66,0.00045204,120]
[377255274,1754306939592,-5293.82,0.00045478,120]
[377255275,1754306939634,-400.0,0.00045478,120]
[377255276,1754306939677,-5293.82,0.00045752,120]
[377255277,1754306939723,-400.0,0.00045752,120]
[377255278,1754306939771,-5293.82,0.00046026,120]
[377255279,1754306939816,-400.0,0.00046026,120]
[377255280,1754306939862,-153.0,0.000461,120]
[377255281,1754306939907,-5293.82,0.000463,120]
[377255282,1754306939963,-400.0,0.000463,120]
[377255283,1754306940014,-5293.82,0.00046574,120]
[377255284,1754306940061,-335.78259047,0.00046574,120]
[377255285,1754306940107,-1495.6538,0.000466,30]
[377255286,1754306940156,-5293.82,0.00046848,120]
[377255287,1754306940206,-682.37,0.00047122,120]
[377255288,1754306940252,-5293.82,0.00047122,120]
[377255289,1754306940300,-153.0,0.000472,120]
[377255290,1754306940348,-682.37,0.00047396,120]
[377255291,1754306940393,-5293.82,0.00047396,120]
[377255292,1754306940442,-682.37,0.0004767,120]
[377255293,1754306940489,-5293.82,0.0004767,120]
[377255294,1754306940536,-5293.94,0.00047944,120]
[377255295,1754306940582,-682.59698291,0.00047944,120]
[377255296,1754306940627,-17631.459999,0.00048,120]
[377255297,1754306940672,-1495.6538,0.00048,30]
[377255298,1754306940718,-700.0,0.00048283,18]
[377255299,1754306940762,-700.0,0.00048283,18]
[377255300,1754306940807,-700.0,0.00048283,18]
[377255301,1754306940851,-700.0,0.00048283,18]
[377255302,1754306940896,-700.0,0.00048283,18]
[377255303,1754306940941,-700.0,0.00048283,18]
[377255304,1754306940987,-700.0,0.00048283,18]
[377255305,1754306941034,-700.0,0.00048283,18]
[377255306,1754306941077,-700.0,0.00048283,18]
[377255307,1754306941119,-700.0,0.00048283,18]
[377255308,1754306941161,-700.0,0.00048283,38]
[377255309,1754306941208,-153.0,0.000484,120]
[377255310,1754306941254,-1000.0,0.00049,120]
[377255311,1754306941299,-153.0,0.000495,120]
[377255312,1754306941342,-150.0,0.00053094,30]
[377255313,1754306941386,-150.0,0.00053144,30]
[377255314,1754306941427,-150.0,0.00053545,30]
[377255315,1754306941469,-700.0,0.00053762,40]
[377255316,1754306941512,-150.0,0.0005424,30]
[377255317,1754306941554,-1737480.85543975,0.00055,120]
[377255318,1754306941594,-5000.0,0.00055,120]
[377255319,1754306941633,-60000.0,0.00055,120]
[377255320,1754306941675,-202.03,0.00055,120]
[377255321,1754306941722,-150.93,0.00055,120]
[377255322,1754306941769,-1000.0,0.00055,120]
[377255323,1754306941817,-980.85769267,0.00055067,120]
[377255324,1754306942137,-666.0,0.00055068,120]
[377255325,1754306942186,-151.0,0.000551,120]
[377255326,1754306942233,-152.0,0.00055167,12]
[377255327,1754306942281,-666.0,0.00055205,120]
[377255328,1754306942328,-505.0,0.00055219,38]
[377255329,1754306942370,-500.0,0.00055275,120]
[377255330,1754306942415,-666.0,0.00055342,120]
[377255331,1754306942464,-150.0,0.00055387,120]
[377255332,1754306942510,-666.0,0.00055479,120]
[377255333,1754306942554,-5000.0,0.000555,120]
[377255334,1754306942599,-4223.0,0.00055534,120]
[377255335,1754306942645,-2000.0,0.0005555,47]
[377255336,1754306942690,-178.33,0.00055615,120]
[377255337,1754306942738,-666.0,0.00055616,120]
[377255338,1754306942784,-291.79079979,0.00055753,120]
[377255339,1754306942829,-150.0,0.0005576,120]
[377255340,1754306942876,-600.0,0.00055811,120]
[377255341,1754306942928,-163.48,0.0005583,120]
[377255342,1754306942978,-500.0,0.00055833,120]
[377255343,1754306943030,-500.0,0.00055915,120]
[377255344,1754306943078,-500.0,0.00055944,120]
[377255345,1754306943129,-50000.0,0.00056,56]
[377255346,1754306943182,-50000.0,0.00056,66]
[377255347,1754306943236,-2000000.0,0.00056,120]
[377255348,1754306943285,-5000.0,0.00056,120]
[377255349,1754306943333,-721.63506131,0.00056,120]
[377255350,1754306943382,-713.5542896,0.00056,120]
[377255351,1754306943430,-500.0,0.0005603,120]
[377255352,1754306943478,-800.0,0.00056045,120]
[377255353,1754306943525,-500.0,0.00056051,120]
[377255354,1754306943574,-500.0,0.00056084,120]
[377255355,1754306943624,-600.0,0.00056119,120]
[377255356,1754306943672,-150.0,0.00056163,120]
[377255357,1754306943723,-151.0,0.000562,120]
[377255358,1754306943772,-1083.0,0.00056228,120]
[377255359,1754306943822,-999.0,0.00056301,120]
[377255360,1754306943871,-150.0,0.00056369,30]
[377255361,1754306943919,-1016.52644044,0.00056369,30]
[377255362,1754306943970,-505.0,0.00056414,44]
[377255363,1754306944019,-500.0,0.00056422,120]
[377255364,1754306944068,-5000.0,0.000565,120]
[377255365,1754306944117,-600.0,0.000566,120]
[377255366,1754306944166,-2023.0,0.00056624,120]
[377255367,1754306944216,-1651.0,0.00056624,120]
[377255368,1754306944264,-600.0,0.00056698,120]
[377255369,1754306944314,-500.0,0.00056725,120]
[377255370,1754306944366,-338.0,0.00056741,120]
[377255371,1754306944413,-207.0,0.00056741,120]
[377255372,1754306944460,-600.0,0.00056869,120]
[377255373,1754306944507,-438.0,0.00056985,120]
[377255374,1754306944553,-178.33,0.00056985,120]
[377255375,1754306944600,-50000.0,0.00057,57]
[377255376,1754306944653,-50000.0,0.00057,67]
[377255377,1754306944702,-566061.58747151,0.00057,120]
[377255378,1754306945291,466.94697681,0.00011655,2]
[377255379,1754306945447,534.65529004,0.00011655,2]
[377255381,1754306950050,-162.65445173,0.00040181,15]
[377255382,1754306950197,-162.65445173,0.00041092,15]
[377255383,1754306950303,-1500.0,0.00041396,10]
[377255384,1754306950400,-299.99,0.00041902,120]
[377255385,1754306950495,-2000.0,0.00041944,10]
[377255386,1754306950540,-162.65445173,0.00042002,15]
[377255387,1754306950661,-798.21785715,0.00042492,10]
[377255388,1754306950870,-1034.95,0.00043835,120]
[377255389,1754306950918,-1354.25,0.00043835,120]
[377255390,1754306950964,-6288.24,0.00043835,120]
[377255391,1754306951008,-772.52,0.00043835,120]
[377255392,1754306951049,-400.0,0.00044108,120]
[377255393,1754306951090,-540.72,0.00044108,120]
[377255394,1754306951131,-400.0,0.00044108,120]
[377255395,1754306951170,-400.0,0.00044108,120]
[377255396,1754306951595,-1034.95,0.00044109,120]
[377255397,1754306951666,-1354.25,0.00044109,120]
[377255398,1754306951720,-6288.24,0.00044109,120]
[377255399,1754306951770,-772.52,0.00044109,120]
[377255400,1754306951818,-400.0,0.00044382,120]
[377255401,1754306951869,-540.72,0.00044382,120]
[377255402,1754306951919,-400.0,0.00044382,120]
[377255403,1754306951965,-400.0,0.00044382,120]
[377255404,1754306952012,-1034.95,0.00044383,120]
[377255405,1754306952055,-1354.25,0.00044383,120]
[377255406,1754306952098,-6288.24,0.00044383,120]
[377255407,1754306952145,-772.52,0.00044383,120]
[377255408,1754306952189,-400.0,0.00044656,120]
[377255409,1754306952232,-540.72,0.00044656,120]
[377255410,1754306952276,-400.0,0.00044656,120]
[377255411,1754306952327,-1035.15,0.00044657,120]
[377255412,1754306952373,-1354.25,0.00044657,120]
[377255413,1754306952420,-6288.3,0.00044657,120]
[377255414,1754306952465,-772.75008049,0.00044657,120]
[377255415,1754306952511,-400.0,0.0004493,120]
[377255416,1754306952559,-540.72,0.0004493,120]
[377255417,1754306952607,-400.0,0.0004493,120]
[377255418,1754306952658,-400.0,0.00045204,120]
[377255419,1754306952704,-540.72,0.00045204,120]
[377255420,1754306952755,-400.0,0.00045204,120]
[377255421,1754306952802,-545.66,0.00045478,120]
[377255422,1754306952851,-400.0,0.00045478,120]
[377255423,1754306952901,-540.72,0.00045478,120]
[377255424,1754306952949,-400.0,0.00045478,120]
[377255425,1754306952996,-545.66,0.00045752,120]
[377255426,1754306953041,-400.0,0.00045752,120]
[377255427,1754306953084,-540.72,0.00045752,120]
[377255428,1754306953128,-545.66,0.00046026,120]
[377255429,1754306953171,-400.0,0.00046026,120]
[377255430,1754306953214,-540.72,0.00046026,120]
[377255431,1754306953256,-545.66,0.000463,120]
[377255432,1754306953300,-440.51608936,0.000463,120]
[377255433,1754306953343,-540.72,0.000463,120]
[377255434,1754306953386,-545.66,0.00046574,120]
[377255435,1754306953430,-540.72,0.00046574,120]
[377255436,1754306953477,-545.66,0.00046848,120]
[377255437,1754306953523,-540.72,0.00046848,120]
[377255438,1754306953567,-545.66,0.00047122,120]
[377255439,1754306953611,-540.72,0.00047122,120]
[377255440,1754306953661,-545.66,0.00047396,120]
[377255441,1754306953714,-540.72,0.00047396,120]
[377255442,1754306953763,-545.66,0.0004767,120]
[377255443,1754306953814,-540.72,0.0004767,120]
[377255444,1754306953863,-545.74999689,0.00047944,120]
[377255445,1754306953911,-540.8939474,0.00047944,120]
[377255446,1754306953965,-153.0,0.000506,120]
[377255447,1754306954011,-153.0,0.000517,120]
[377255448,1754306954061,-2000.0,0.000525,120]
[377255449,1754306954110,-153.0,0.000529,120]
[377255450,1754306954155,-2000.0,0.000535,120]
[377255451,1754306954202,-153.0,0.00054,120]
[377255452,1754306954247,-153.0,0.000551,120]
[377255453,1754306954293,-153.0,0.000562,120]
[377255454,1754306954341,-1433938.41252849,0.00057,120]
[377255455,1754306954386,-5000.0,0.00057,120]
[377255456,1754306954430,-152.0,0.00057176,13]
[377255457,1754306954476,-338.0,0.00057218,120]
[377255458,1754306954521,-207.0,0.00057218,120]
[377255459,1754306954567,-151.0,0.000574,120]
[377255460,1754306954611,-153.0,0.000574,120]
[377255461,1754306954658,-800.0,0.00057439,120]
[377255462,1754306954705,-5000.0,0.000575,120]
[377255463,1754306954752,-5622.539999,0.000575,120]
[377255464,1754306954797,-4223.0,0.00057534,120]
[377255465,1754306954845,-225.62128932,0.00057534,120]
[377255466,1754306954897,-500.0,0.00057558,120]
[377255467,1754306954946,-204.0,0.0005758,30]
[377255468,1754306954997,-505.0,0.00057609,49]
[377255469,1754306955046,-600.0,0.00057648,120]
[377255470,1754306955097,-600.0,0.00057717,120]
[377255471,1754306955149,-2000.0,0.0005796,47]
[377255472,1754306955201,-50000.0,0.00058,58]
[377255473,1754306955251,-50000.0,0.00058,68]
[377255474,1754306955300,-2000000.0,0.00058,120]
[377255475,1754306955347,-10000.0,0.00058,120]
[377255476,1754306955397,-5000.0,0.00058,120]
[377255477,1754306955446,-279.73590545,0.00058082,120]
[377255478,1754306955491,-600.0,0.00058242,120]
[377255479,1754306955540,-178.33,0.00058355,120]
[377255480,1754306955586,-800.0,0.00058378,120]
[377255481,1754306955634,-600.0,0.00058492,120]
[377255482,1754306955681,-5000.0,0.000585,120]
[377255483,1754306955728,-151.0,0.000585,120]
[377255484,1754306955773,-153.0,0.000585,120]
[377255485,1754306955819,-700.0,0.00058659,120]
[377255486,1754306955866,-2000.0,0.0005869,47]
[377255487,1754306955913,-150.0,0.00058782,120]
[377255488,1754306955961,-505.0,0.00058805,54]
[377255489,1754306956009,-150.0,0.00058846,120]
[377255490,1754306956054,-600.0,0.00058906,120]
[377255491,1754306956096,-500.0,0.00058974,120]
[377255492,1754306956142,-50000.0,0.00059,59]
[377255493,1754306956188,-50000.0,0.00059,69]
[377255494,1754306956232,-1244200.67895126,0.00059,120]
[377255497,1754306969162,-1612.663503,0.000344,21]
[377255498,1754306969207,-150.0,0.000347,30]
[377255499,1754306969250,-1500.0,0.000349,21]
[377255500,1754306969292,-1500.0,0.000354,21]
[377255501,1754306969334,-1500.0,0.000359,21]
[377255502,1754306969376,-1500.0,0.000364,21]
[377255503,1754306969771,-218.60821897,0.000409,43]
[377255504,1754306970219,-151.0,0.00041917,14]
[377255505,1754306970306,-199.943647,0.00042191,14]
[377255506,1754306970393,-1492.76435,0.00042465,14]
[377255507,1754306970475,-162.65445173,0.00042913,15]
[377255508,1754306970611,-1372.4,0.00043835,120]
[377255509,1754306970664,-422.99168004,0.00043835,120]
[377255510,1754306970713,-777.53,0.00043835,120]
[377255511,1754306970758,-405.34,0.00043835,120]
[377255512,1754306970801,-1874.05,0.00043835,120]